bitfinex/quotes_ETHUSD_20220118
["timestamp","ask_amount","ask_price","bid_price","bid_amount"]
[1642516641653,3.2,3103.8,3103.3,0.00170527]
[1642516642150,0.1288,3103.7,3103.3,0.00170527]
[1642516642354,2.08233493,3103.7,3103.3,0.00170527]
[1642516642554,2.08233493,3103.7,3103.1,0.00284212]
[1642516642751,2.2152118,3103.3,3103.1,0.00284212]
[1642516643352,2.3440118,3103.3,3103.1,0.00284212]
[1642516644754,1.95353493,3103.2,3103.1,0.00284212]
[1642516645130,1.95353493,3103.2,3103.1,2.20284212]
[1642516645920,1.95353493,3103.2,3103.1,0.00284192]
[1642516646122,1.95353493,3103.2,3103.1,2.65284192]
[1642516646321,1.95353493,3103.2,3103.1,2.65]
[1642516646524,1.63392406,3103.6,3103.2,6.1]
[1642516646723,1.63392406,3103.6,3103.3,0.1288]
[1642516646922,1.63392406,3103.6,3103.3,0.13050507]
[1642516647123,1.63392406,3103.6,3103.4,0.00113665]
[1642516647322,3.2,3103.8,3103.4,0.00113665]
[1642516647923,3.2,3103.8,3103.4,0.12993665]
[1642516648223,1.11429221,3104.3,3103.5,6.1]
[1642516648424,0.1288,3104.2,3103.6,0.08350759]
[1642516648623,1.6370329,3104.1,3103.8,0.08722776]
[1642516648849,1.6370329,3104.1,3103.7,2.15]
[1642516648850,1.82156345,3104.0,3103.7,0.0022735]
[1642516649057,2.75594345,3104.0,3103.9,0.00113665]
[1642516649258,2.75594345,3104.0,3103.6,0.00284192]
[1642516649459,0.93438,3104.0,3103.6,0.00284192]
[1642516650260,0.93438,3104.0,3103.6,0.80842192]
[1642516650655,0.1288,3104.0,3103.7,2.08145736]
[1642516651059,0.1,3104.1,3103.8,0.00170507]
[1642516651460,0.1,3104.1,3103.9,0.80537]
[1642516651658,0.1,3104.1,3104.0,4.52182973]
[1642516652701,0.1,3104.1,3103.9,0.80537]
[1642516653099,0.1,3104.1,3103.9,1.61079]
[1642516653298,0.1,3104.1,3103.9,1.91079]
[1642516653502,0.1,3104.1,3103.9,1.61079]
[1642516653705,0.1,3104.1,3104.0,5.10511738]
[1642516654103,0.1,3104.1,3104.0,1.30511738]
[1642516654704,1.61093,3104.8,3104.0,1.30511738]
[1642516654705,3.41842213,3105.2,3104.2,6.1]
[1642516654907,3.41842213,3105.2,3104.3,0.05864713]
[1642516655105,0.00170527,3104.6,3104.4,0.1288]
[1642516655305,1.97100233,3105.5,3104.4,0.18004694]
[1642516655514,1.97100233,3105.5,3104.8,0.80501]
[1642516655707,0.00284212,3105.1,3105.0,0.8049806]
[1642516656473,0.00284212,3105.1,3105.0,8.11080318]
[1642516659271,1.25737968,3105.6,3105.0,8.11080318]
[1642516659475,0.37659095,3105.6,3105.3,0.8048576]
[1642516659671,0.257728,3106.0,3105.4,0.1288]
[1642516659672,1.63238392,3105.7,3105.4,0.1288]
[1642516659874,2.70868395,3106.0,3105.6,6.1]
[1642516660104,2.70868395,3106.0,3105.7,0.93341]
[1642516660314,3.27292859,3106.2,3105.8,8.85649695]
[1642516660512,3.27292859,3106.2,3105.9,0.1287]
[1642516660713,0.00341054,3106.1,3105.9,0.93336]
[1642516660911,2.44768908,3106.6,3106.0,5.15]
[1642516661111,2.44768908,3106.6,3105.9,0.93336]
[1642516661112,2.44768908,3106.6,3105.9,0.80466]
[1642516661311,0.00227369,3106.5,3105.9,0.80466]
[1642516661714,0.00170527,3106.4,3106.0,0.80471]
[1642516662115,2.26365865,3106.2,3106.0,0.80471]
[1642516662516,0.00113684,3106.3,3106.0,0.80471]
[1642516662715,0.00113684,3106.3,3106.1,0.08248816]
[1642516663319,0.00113684,3106.3,3106.0,0.80471]
[1642516664752,0.00113684,3106.3,3106.1,0.09450265]
[1642516665153,0.00113684,3106.3,3106.0,4.72801]
[1642516665759,0.00113684,3106.3,3105.3,3.2244715]
[1642516665760,0.13924003,3106.2,3105.1,4.4775]
[1642516665963,0.1287,3106.2,3105.3,7.3939]
[1642516666158,0.80514,3106.0,3105.3,7.39844739]
[1642516666359,0.1287,3105.9,3105.4,0.00397897]
[1642516666566,1.73350223,3105.9,3105.4,0.00397897]
[1642516666859,1.40600305,3106.1,3105.4,0.80895897]
[1642516667060,0.1287,3106.0,3105.5,0.80492]
[1642516667259,0.1287,3106.0,3105.5,0.80833054]
[1642516667459,0.1287,3106.0,3105.6,0.00284212]
[1642516668015,1.40600305,3105.9,3105.6,0.00284212]
[1642516669311,1.40600305,3105.9,3105.6,0.80497]
[1642516669510,1.40600305,3105.9,3105.7,0.46175389]
[1642516669711,1.40600305,3105.8,3105.7,0.3022737]
[1642516669912,1.40600305,3105.8,3105.7,6.8547864]
[1642516670710,1.40600305,3105.8,3105.7,6.5547864]
[1642516671214,1.40600305,3105.8,3105.7,6.8547864]
[1642516671650,1.40600305,3105.8,3105.7,6.5547864]
[1642516672250,1.40600305,3105.8,3105.7,8.5846041]
[1642516673055,0.00113684,3106.3,3105.8,6.1]
[1642516673256,0.00113684,3106.3,3105.9,0.80471]
[1642516673458,0.00113684,3106.3,3106.0,0.55936615]
[1642516674457,0.00113684,3106.3,3105.9,0.80584685]
[1642516675113,0.00113684,3106.3,3106.0,0.03265172]
[1642516675304,0.00113684,3106.3,3106.1,0.1287]
[1642516675905,0.00113684,3106.3,3106.1,3.6287]
[1642516676105,2.18017493,3107.4,3106.3,4.4]
[1642516676307,2.18017493,3107.4,3106.6,0.8045916]
[1642516676511,0.00454739,3107.1,3106.8,0.80455]
[1642516676908,0.00397897,3107.0,3106.8,0.80455]
[1642516677207,0.1287,3107.8,3106.8,0.80455]
[1642516677208,0.00341054,3106.9,3106.8,0.80455]
[1642516677609,0.00341054,3106.9,3106.7,2.4136208]
[1642516677807,0.00341054,3106.9,3106.7,2.7136208]
[1642516678009,0.00284212,3106.8,3106.7,1.90909]
[1642516678208,0.00284212,3106.8,3106.7,0.6]
[1642516678507,1.24286692,3107.3,3106.7,0.3]
[1642516678708,1.24286692,3107.3,3106.7,0.81028423]
[1642516678956,1.24286692,3107.3,3106.9,0.80459]
[1642516679158,0.1287,3107.6,3106.9,0.80459]
[1642516679456,0.1287,3107.7,3107.0,0.00397896]
[1642516679657,0.13040527,3108.0,3107.0,0.00397896]
[1642516679956,0.00113685,3107.9,3107.0,2.41352]
[1642516680157,2.24708797,3107.8,3107.1,0.1287]
[1642516680357,2.24708797,3107.8,3107.1,0.13211054]
[1642516680558,2.24708797,3107.8,3107.2,0.00284212]
[1642516680758,2.24708797,3107.8,3107.2,0.80730212]
[1642516680959,2.24708797,3107.8,3107.2,0.00284212]
[1642516681159,0.1287,3107.7,3107.3,0.00227369]
[1642516681360,0.1287,3107.7,3106.9,3.50454739]
[1642516681558,0.00246785,3107.1,3107.0,0.80849896]
[1642516681761,0.00246785,3107.1,3107.0,4.15849896]
[1642516681958,0.00246785,3107.1,3107.0,5.56301896]
[1642516682631,6.785e-05,3107.1,3107.0,9.69901896]
[1642516683934,6.785e-05,3107.1,3107.0,12.32771896]
[1642516684533,6.785e-05,3107.1,3107.0,32.12771896]
[1642516684733,6.785e-05,3107.1,3107.0,13.32771896]
[1642516684933,6.785e-05,3107.1,3107.0,12.32771896]
[1642516685632,6.785e-05,3107.1,3107.0,13.32771896]
[1642516685832,6.785e-05,3107.1,3107.0,12.32771896]
[1642516686033,6.785e-05,3107.1,3107.0,13.32771896]
[1642516686958,0.00113685,3107.9,3107.2,19.60415]
[1642516687150,0.00113685,3107.9,3107.7,0.62455705]
[1642516687354,0.00113685,3107.9,3107.8,4.186]
[1642516687554,0.00113685,3107.9,3107.6,3.7666]
[1642516687755,0.00113685,3107.9,3107.8,0.3]
[1642516687956,0.00113685,3107.9,3107.6,3.7666]
[1642516688155,0.00113685,3107.9,3107.7,3.5]
[1642516688356,0.00113685,3107.9,3107.7,3.8]
[1642516689157,0.00113685,3107.9,3107.7,0.3]
[1642516689355,0.00113685,3107.9,3107.7,1.10431]
[1642516689558,0.00113685,3107.9,3107.8,6.53137073]
[1642516689958,0.00113685,3107.9,3107.8,6.83137073]
[1642516690206,0.00113685,3107.9,3107.8,8.70561511]
[1642516690505,3.685e-05,3107.9,3107.8,25.7147]
[1642516690704,3.685e-05,3107.9,3107.8,6.9147]
[1642516691305,3.685e-05,3107.9,3107.8,10.4147]
[1642516691505,3.685e-05,3107.9,3107.8,11.4147]
[1642516692120,3.685e-05,3107.9,3107.8,30.2147]
[1642516692711,3.685e-05,3107.9,3107.8,11.4147]
[1642516693311,3.685e-05,3107.9,3107.8,30.2147]
[1642516693712,3.685e-05,3107.9,3107.8,30.9466]
[1642516693953,1.74600057,3109.1,3107.9,6.1]
[1642516694152,1.61730057,3109.1,3108.2,1.6080767]
[1642516694354,1.61730057,3109.1,3108.3,4.60405]
[1642516694355,0.00625266,3109.0,3108.3,4.60405]
[1642516694557,0.00625266,3109.0,3108.6,1.73599639]
[1642516694758,1.61730057,3109.1,3108.6,2.23768095]
[1642516694759,0.00568423,3108.9,3108.6,2.23768095]
[1642516695157,0.00511581,3108.8,3108.6,4.14560095]
[1642516695557,9.03730057,3109.3,3108.6,4.14560095]
[1642516695558,9.03730057,3109.3,3108.8,0.80389]
[1642516695756,9.03730057,3109.3,3109.0,18.8]
[1642516695960,0.00227369,3109.2,3109.1,0.5145]
[1642516696159,0.00227369,3109.2,3109.1,20.6145]
[1642516696356,0.00227369,3109.2,3109.1,22.28517039]
[1642516696558,1.61730057,3109.5,3109.3,0.04325058]
[1642516696757,1.61730057,3109.5,3109.4,10.1145]
[1642516696956,1.61730057,3109.5,3109.4,10.4145]
[1642516697158,85.86956816,3110.0,3109.6,0.05108893]
[1642516697368,85.86956816,3110.0,3109.7,0.386]
[1642516697611,72.56056816,3110.0,3109.8,0.05700368]
[1642516697809,65.14056816,3110.0,3109.8,4.167]
[1642516698109,65.14056816,3110.0,3109.9,0.6]
[1642516698309,65.14056816,3110.0,3109.9,0.3]
[1642516698509,61.89085761,3110.0,3109.9,0.3]
[1642516698710,61.89085761,3110.0,3109.8,4.1245]
[1642516698913,61.89085761,3110.0,3109.9,0.3]
[1642516699113,61.88631022,3110.0,3109.9,0.3]
[1642516699810,61.88631022,3110.0,3109.8,3.5]
[1642516700213,0.13247897,3109.9,3109.8,3.5]
[1642516701012,0.13247897,3109.9,3109.8,1.04167611]
[1642516701214,0.00397897,3109.9,3109.2,0.1285]
[1642516701675,0.00341054,3109.8,3109.2,0.1285]
[1642516701873,1.81687865,3109.4,3109.1,3.2256798]
[1642516702075,1.81687865,3109.4,3109.1,0.8145]
[1642516702275,0.00284212,3109.7,3109.1,0.8145]
[1642516702476,0.00284212,3109.7,3109.1,5.41828]
[1642516702778,61.88631022,3110.0,3109.2,1.0]
[1642516702779,0.0022737,3109.6,3109.2,1.0]
[1642516702977,0.0022737,3109.6,3109.2,5.14851593]
[1642516703176,0.00170527,3109.5,3109.2,5.14851593]
[1642516703376,0.00170527,3109.5,3109.2,1.0]
[1642516703576,0.00113685,3109.4,3109.1,4.6145]
[1642516703776,0.00113685,3109.4,3109.3,1.5]
[1642516704378,1.67962391,3109.4,3109.3,4.25]
[1642516704578,1.67962391,3109.4,3109.3,3.95]
[1642516704979,1.67962391,3109.4,3109.3,1.5]
[1642516705413,5.95812391,3109.4,3109.3,1.5]
[1642516705610,5.95812391,3109.4,3109.2,3.5]
[1642516705813,0.1285,3109.3,3109.2,3.5]
[1642516706307,1.30532102,3108.4,3108.2,3.5]
[1642516706708,1.30532102,3108.4,3108.3,0.00511581]
[1642516707310,1.30532102,3108.4,3107.5,1.3431]
[1642516707311,1.77409009,3108.4,3107.9,0.0073895]
[1642516707511,1.77409009,3108.4,3107.8,0.80412]
[1642516707711,1.77409009,3108.4,3107.6,18.80909477]
[1642516707914,1.77409009,3108.4,3107.9,0.0073895]
[1642516708109,1.77409009,3108.4,3107.7,0.3]
[1642516708110,1.77409009,3108.4,3108.0,0.1285]
[1642516708310,0.1287,3109.3,3108.0,3.5]
[1642516708511,0.00113685,3109.4,3108.1,0.73475265]
[1642516708955,0.00113685,3109.4,3108.3,0.06968404]
[1642516709154,0.00113685,3109.4,3108.2,0.00568423]
[1642516709359,1.67874454,3109.2,3108.4,0.00454738]
[1642516709562,1.12023023,3108.8,3108.2,0.00568423]
[1642516709759,1.12023023,3108.8,3108.2,0.13418423]
[1642516709960,1.67874454,3109.2,3108.1,0.00625265]
[1642516710165,1.67874454,3109.2,3108.4,0.09169257]
[1642516710362,1.67874454,3109.2,3108.5,1.31842]
[1642516710564,0.00113685,3109.4,3108.5,1.62239896]
[1642516710762,0.00113685,3109.4,3108.6,0.0342836]
[1642516710961,0.00113685,3109.4,3108.7,1.31841]
[1642516711161,0.00113685,3109.4,3108.8,0.03039238]
[1642516711361,0.00113685,3109.4,3108.9,0.5145]
[1642516711561,0.00113685,3109.4,3108.9,1.62000527]
[1642516711762,0.00113685,3109.4,3109.0,0.00113684]
[1642516711961,0.00113685,3109.4,3109.1,0.1285]
[1642516712161,0.00113685,3109.4,3109.1,0.9322844]
[1642516712363,0.00113685,3109.4,3109.2,0.80379]
[1642516712813,0.00113685,3109.4,3109.1,0.4285]
[1642516713613,0.00113685,3109.4,3109.2,19.98979]
[1642516713813,0.00113685,3109.4,3109.2,21.03739]
[1642516714014,0.00113685,3109.4,3109.3,7.1]
[1642516714212,0.00113685,3109.4,3109.3,26.7145]
[1642516714613,0.00113685,3109.4,3109.3,27.5567]
[1642516714813,61.88631022,3110.0,3109.4,6.1]
[1642516715013,61.88631022,3110.0,3109.5,4.63391925]
[1642516715218,61.88631022,3110.0,3109.6,0.1285]
[1642516715219,0.00227369,3109.8,3109.6,0.1285]
[1642516715417,0.00227369,3109.8,3109.7,25.286]
[1642516715722,63.79194149,3110.0,3109.7,27.38952]
[1642516715917,63.79194149,3110.0,3109.8,18.8]
[1642516716118,0.00284212,3109.9,3109.8,3.2930316]
[1642516716365,0.00284212,3109.9,3109.8,7.6930316]
[1642516716568,0.00284212,3109.9,3109.8,26.4930316]
[1642516716965,0.00284212,3109.9,3109.8,29.9930316]
[1642516717168,60.88915234,3110.0,3109.9,6.1]
[1642516717467,60.88915234,3110.0,3109.9,25.586]
[1642516717666,60.88915234,3110.0,3109.9,26.586]
[1642516717868,60.88915234,3110.0,3109.9,26.7145]
[1642516718370,60.88915234,3110.0,3109.9,7.9145]
[1642516718867,60.88915234,3110.0,3109.9,7.786]
[1642516720515,60.88915234,3110.0,3109.9,26.7145]
[1642516720714,44.76142838,3110.0,3109.9,28.7145]
[1642516720918,44.46142838,3110.0,3109.9,28.7145]
[1642516721318,44.46142838,3110.0,3109.9,28.586]
[1642516721718,1.61671904,3111.4,3110.4,0.80329]
[1642516721920,1.61671904,3111.4,3110.9,0.01297654]
[1642516722116,1.61671904,3111.4,3110.9,0.386]
[1642516722316,0.1285,3111.3,3110.1,0.386]
[1642516722517,5.60587796,3111.6,3110.1,0.386]
[1642516722518,0.1285,3111.5,3110.1,0.386]
[1642516722716,0.13759477,3111.5,3110.4,3.5]
[1642516722917,0.00909477,3111.5,3110.4,3.5]
[1642516723118,0.25082344,3111.2,3110.5,0.8034244]
[1642516723318,0.25082344,3111.2,3110.7,0.10543616]
[1642516723520,0.00682108,3111.1,3110.8,0.5145]
[1642516723969,0.00625266,3111.0,3110.9,1.60647]
[1642516724170,0.00625266,3111.0,3110.9,5.44247]
[1642516724370,0.00625266,3111.0,3110.9,6.00997]
[1642516724569,0.00625266,3111.0,3110.9,7.64163]
[1642516724769,0.00625266,3111.0,3110.9,26.74163]
[1642516724969,0.00625266,3111.0,3110.9,26.44163]
[1642516725170,0.00625266,3111.0,3110.9,25.63847]
[1642516725570,0.00625266,3111.0,3110.9,28.74247]
[1642516726269,0.00625266,3111.0,3110.9,29.25317]
[1642516726469,0.00625266,3111.0,3110.9,31.22784698]
[1642516726671,20.0,3112.0,3111.0,6.15]
[1642516726870,20.0,3112.0,3111.3,1.60608]
[1642516727071,0.00397896,3111.7,3111.4,23.91753]
[1642516727270,0.00397896,3111.7,3111.4,24.99047]
[1642516727471,20.0,3112.0,3111.5,19.8]
[1642516727472,0.00341054,3111.6,3111.5,19.8]
[1642516727709,0.00341054,3111.6,3111.5,20.186]
[1642516727908,0.00341054,3111.6,3111.5,20.486]
[1642516728309,0.00341054,3111.6,3111.5,25.5920699]
[1642516728509,0.00341054,3111.6,3111.5,7.0920699]
[1642516728713,0.00341054,3111.6,3111.5,7.12491794]
[1642516728912,20.0,3112.0,3111.6,6.15]
[1642516729111,20.0,3112.0,3111.8,18.8]
[1642516729310,16.9622,3112.0,3111.9,11.02533655]
[1642516729511,16.9622,3112.0,3111.9,28.65584756]
[1642516729710,16.96447369,3112.0,3111.9,24.31651101]
[1642516729913,16.96447369,3112.0,3111.9,24.44501101]
[1642516730314,3.65637369,3112.0,3111.9,24.44501101]
[1642516730714,1.61671904,3113.3,3111.9,24.44501101]
[1642516730715,1.61671904,3113.3,3111.9,26.07149713]
[1642516730922,1.61671904,3113.3,3112.3,1.64472817]
[1642516731115,1.61671904,3113.3,3112.5,6.2]
[1642516731362,7.05965794,3113.8,3112.7,18.85180877]
[1642516731363,0.00397896,3113.2,3112.7,18.85180877]
[1642516731562,0.00397896,3113.2,3112.8,6.249]
[1642516731763,0.00341054,3113.1,3112.9,18.8]
[1642516732062,2.27131598,3113.3,3113.0,3.763]
[1642516732260,1.61671904,3113.5,3113.1,18.8]
[1642516732462,1.61671904,3113.5,3113.2,0.463]
[1642516732463,0.00511581,3113.4,3113.2,0.463]
[1642516732663,0.00511581,3113.4,3113.2,20.263]
[1642516732864,0.00454739,3113.3,3113.2,20.60125959]
[1642516733063,0.00454739,3113.3,3113.2,21.40393959]
[1642516733462,0.00454739,3113.3,3113.2,21.36568]
[1642516733664,0.00454739,3113.3,3113.2,0.763]
[1642516733866,0.00454739,3113.3,3113.2,0.463]
[1642516734067,3.60454739,3113.3,3113.2,0.463]
[1642516734364,0.00454739,3113.3,3113.2,0.463]
[1642516734566,0.1283,3113.6,3113.3,6.15]
[1642516734764,1.74529404,3114.6,3113.5,0.11280929]
[1642516734966,1.74529404,3114.6,3113.6,0.5914]
[1642516735216,1.61671904,3114.3,3113.7,18.95355439]
[1642516735419,1.61671904,3114.3,3113.8,0.5913]
[1642516735616,0.00511581,3114.2,3113.9,18.8]
[1642516735816,0.00511581,3114.2,3113.8,0.7121]
[1642516735817,0.00511581,3114.2,3114.0,19.263]
[1642516736025,1.61671904,3114.3,3114.0,19.263]
[1642516736026,1.61671904,3114.3,3114.2,18.8]
[1642516736218,1.12723553,3114.5,3114.2,19.90061481]
[1642516736421,0.005,3115.0,3114.5,5.8]
[1642516736619,0.005,3115.0,3114.6,4.75723788]
[1642516736819,0.005,3115.0,3114.9,8.986]
[1642516737020,1.61151941,3115.5,3115.3,2.03995619]
[1642516737220,0.55334873,3115.5,3115.4,4.513]
[1642516737416,3.43973979,3115.8,3115.4,4.54401826]
[1642516737617,3.22303883,3116.0,3115.5,4.85]
[1642516737818,3.22303883,3116.0,3115.6,0.49883399]
[1642516738017,6.04539763,3116.5,3115.6,0.49883399]
[1642516738018,0.00113685,3115.7,3115.6,6.71243399]
[1642516738218,6.04539763,3116.5,3115.8,19.0475]
[1642516738419,3.8082,3116.8,3115.9,0.463]
[1642516738618,0.01230735,3117.3,3116.1,5.786]
[1642516738619,0.00397896,3116.4,3116.1,5.786]
[1642516738869,0.1283,3117.7,3116.3,6.2]
[1642516739072,1.72033015,3117.2,3116.4,6.46421318]
[1642516739271,0.00454739,3117.2,3116.5,5.786]
[1642516739467,0.00454739,3117.2,3116.9,5.786]
[1642516739669,5.39524682,3118.5,3117.1,5.786]
[1642516739870,4.0242289,3118.0,3117.3,5.786]
[1642516740067,0.00397896,3117.9,3117.4,0.49189357]
[1642516740273,0.00397896,3117.9,3117.6,1.92904731]
[1642516740472,0.08161054,3119.0,3117.8,5.65]
[1642516740673,1.06294781,3118.6,3117.9,6.33233525]
[1642516740875,0.00284212,3118.3,3117.9,0.463]
[1642516741277,0.1304737,3118.2,3117.9,0.463]
[1642516741480,0.1304737,3118.2,3117.2,0.463]
[1642516741679,0.1304737,3118.2,3117.1,2.0]
[1642516741680,2.03997466,3117.3,3117.0,0.0398402]
[1642516741875,2.03997466,3117.3,3116.8,0.463]
[1642516742278,2.03997466,3117.3,3116.9,0.00511581]
[1642516742477,2.03997466,3117.3,3116.0,2.50203544]
[1642516742478,6.3283,3117.2,3116.0,2.4944121]
[1642516742741,0.01227581,3117.0,3115.6,0.5913]
[1642516742942,0.1283,3116.9,3116.1,0.00454739]
[1642516743140,0.80235,3116.6,3115.7,0.00682108]
[1642516743339,0.80235,3116.6,3115.3,0.00909478]
[1642516743340,0.1283,3116.5,3115.3,0.00909478]
[1642516743540,0.1283,3116.5,3115.0,0.01080005]
[1642516743940,1.39352833,3115.8,3115.0,0.01080005]
[1642516744141,1.92951636,3115.5,3114.9,0.01136847]
[1642516744739,1.92951636,3115.5,3114.4,0.47721059]
[1642516744940,1.92951636,3115.5,3114.5,0.01364216]
[1642516745141,2.03820107,3114.8,3114.5,0.01364216]
[1642516745341,1.09597205,3115.1,3114.5,0.01364216]
[1642516745941,0.1283,3115.9,3114.5,0.01364216]
[1642516746142,0.1283,3116.1,3114.6,0.1283]
[1642516746372,1.83404266,3115.1,3114.5,0.1709814]
[1642516746568,0.1283,3116.0,3114.7,0.01250532]
[1642516746871,0.01267293,3116.3,3114.5,0.1283]
[1642516746872,1.26078048,3115.5,3114.6,0.01307374]
[1642516747070,1.26078048,3115.5,3114.7,0.1283]
[1642516747269,0.1283,3116.2,3114.7,0.1283]
[1642516747468,3.8084,3116.7,3114.8,1.59323755]
[1642516747670,2.28189208,3115.8,3114.8,1.62121372]
[1642516747968,2.28189208,3115.8,3114.9,0.01136847]
[1642516748769,4.8522107,3115.7,3114.9,0.01136847]
[1642516748971,0.01263773,3115.6,3114.9,0.01136847]
[1642516749170,1.21734875,3115.6,3114.5,0.01364216]
[1642516749373,4.8893103,3115.5,3114.5,0.01364216]
[1642516749570,0.4283,3115.5,3114.5,0.01364216]
[1642516749771,1.0,3115.4,3114.5,0.01364216]
[1642516749970,0.1283,3115.3,3114.5,0.01364216]
[1642516750217,0.1283,3115.3,3114.3,2.0]
[1642516750218,3.73232951,3115.4,3114.4,0.01421059]
[1642516750418,0.1283,3115.2,3114.4,0.01421059]
[1642516750618,0.1283,3115.2,3113.4,0.1283]
[1642516750619,0.80275,3115.1,3113.4,0.1283]
[1642516750820,0.01259098,3114.9,3112.8,0.1283]
[1642516751021,0.14730904,3114.8,3113.5,0.00511581]
[1642516751219,0.1305737,3114.8,3113.5,0.00511581]
[1642516751420,2.22732462,3113.3,3112.8,0.00909477]
[1642516751626,2.22732462,3113.3,3112.9,0.1283]
[1642516752125,1.13061797,3113.5,3113.0,0.00795792]
[1642516752522,6.24548074,3114.4,3113.1,0.1283]
[1642516752821,0.93119,3114.5,3113.2,0.00682108]
[1642516753021,0.1283,3114.6,3113.4,1.99732239]
[1642516753221,0.00170527,3114.7,3113.5,0.03400003]
[1642516753422,0.00113685,3114.6,3113.2,0.00682108]
[1642516753622,1.21613612,3114.1,3113.6,0.00454738]
[1642516753874,1.21613612,3114.1,3113.2,1.00682108]
[1642516754061,1.21613612,3114.1,3113.3,0.00625265]
[1642516754663,1.76015785,3114.0,3113.4,0.1283]
[1642516754861,0.1283,3114.6,3113.3,0.00625265]
[1642516754862,1.3127207,3113.4,3113.3,0.00625265]
[1642516755267,1.73415,3114.6,3113.3,0.00625265]
[1642516755466,0.80289,3114.5,3113.4,0.1283]
[1642516755666,0.1283,3114.6,3112.9,0.13682635]
[1642516755867,0.26649997,3114.7,3112.9,0.00852635]
[1642516756067,0.26649997,3114.7,3113.0,0.13625792]
[1642516756268,2.26805105,3113.7,3112.9,0.13682635]
[1642516756468,3.0,3113.2,3112.5,1.0]
[1642516756668,1.35463671,3113.3,3112.5,1.0]
[1642516756866,1.35463671,3113.3,3112.6,0.00284212]
[1642516757271,1.35463671,3113.3,3112.2,0.80808581]
[1642516757469,1.35463671,3113.3,3112.3,1.89003044]
[1642516757719,1.35463671,3113.3,3112.3,1.92593329]
[1642516757918,0.00284212,3113.6,3112.5,0.06552779]
[1642516758320,0.00227369,3113.5,3112.5,0.06552779]
[1642516758520,1.85075303,3113.4,3112.5,1.06552779]
[1642516758720,1.8524583,3113.4,3112.5,1.06552779]
[1642516758924,0.00113685,3113.3,3112.5,1.3]
[1642516760125,1.95482806,3113.2,3112.5,1.3]
[1642516760525,0.00113685,3113.3,3112.5,1.3]
[1642516761127,0.00113685,3113.3,3112.5,2.6141122]
[1642516761380,0.00113685,3113.3,3112.7,0.01289621]
[1642516761566,0.00113685,3113.3,3113.2,6.93717228]
[1642516761767,0.00113685,3113.3,3113.2,5.45]
[1642516762165,1.43719946,3114.6,3113.3,6.2]
[1642516762367,0.13819997,3114.7,3113.4,1.99021]
[1642516762570,0.0073895,3114.6,3113.5,0.94318408]
[1642516762768,0.0073895,3114.6,3113.6,19.23736893]
[1642516762969,2.00424476,3114.5,3113.7,1.75899345]
[1642516763169,2.00424476,3114.5,3113.9,0.8025]
[1642516763371,2.00424476,3114.5,3113.6,19.2248]
[1642516763372,0.00625265,3114.4,3114.0,0.385]
[1642516763668,1.99742368,3114.5,3114.0,0.685]
[1642516763669,0.00568423,3114.3,3114.0,0.685]
[1642516763870,0.00568423,3114.3,3114.1,0.1283]
[1642516764068,0.00511581,3114.2,3114.1,0.1283]
[1642516764671,0.00511581,3114.2,3114.1,4.3633]
[1642516765220,0.00511581,3114.2,3114.1,23.1633]
[1642516765417,0.00511581,3114.2,3114.1,23.96577]
[1642516765818,0.00511581,3114.2,3114.1,26.97115565]
[1642516766023,0.1283,3115.7,3114.7,1.28156084]
[1642516766322,0.1283,3115.7,3114.8,0.72275927]
[1642516766521,0.00795793,3115.6,3114.9,18.8]
[1642516766721,0.00795793,3115.6,3115.0,0.55733493]
[1642516767021,0.0073895,3115.5,3115.2,0.3]
[1642516767322,2.35944145,3115.7,3115.3,0.5133]
[1642516767323,0.00682108,3115.4,3115.3,0.5133]
[1642516767521,0.00682108,3115.4,3115.3,4.335]
[1642516767726,5.1,3115.3,3115.0,1.0]
[1642516768121,2.05501583,3115.2,3115.0,1.0]
[1642516768522,0.00511581,3115.1,3115.0,1.0]
[1642516768721,0.00511581,3115.1,3115.0,2.3]
[1642516769372,0.00511581,3115.1,3115.0,4.32191823]
[1642516769568,0.00511581,3115.1,3115.0,4.65803248]
[1642516769766,0.00511581,3115.1,3115.0,4.95803248]
[1642516769970,0.00511581,3115.1,3115.0,5.17133248]
[1642516770572,0.00511581,3115.1,3115.0,3.44946325]
[1642516770772,0.00511581,3115.1,3115.0,3.4133]
[1642516771574,0.00511581,3115.1,3115.0,1.1133]
[1642516771874,0.00511581,3115.1,3115.0,0.8133]
[1642516772275,0.00511581,3115.1,3115.0,0.685]
[1642516773112,0.00511581,3115.1,3114.7,1.7328438]
[1642516773316,0.00511581,3115.1,3114.6,1.0]
[1642516773317,0.13341581,3115.1,3114.6,1.0]
[1642516773611,0.80724738,3115.0,3114.6,0.3782]
[1642516774010,0.00397896,3114.9,3114.6,0.3782]
[1642516774212,0.00397896,3114.9,3113.5,0.03555057]
[1642516774411,2.19240038,3113.9,3113.5,0.03555057]
[1642516774611,0.00341054,3114.8,3113.7,1.0]
[1642516774811,0.00397896,3114.9,3113.7,1.80264]
[1642516775011,0.80265,3115.1,3113.8,0.0022737]
[1642516775012,0.00284211,3114.7,3113.8,0.0022737]
[1642516775216,0.00341054,3114.8,3113.8,0.0022737]
[1642516775422,0.00227369,3114.6,3113.8,0.03300732]
[1642516775618,1.3731939,3114.7,3113.8,0.0022737]
[1642516775815,1.65289768,3114.3,3113.9,0.00170527]
[1642516776016,1.65289768,3114.3,3113.8,0.1306737]
[1642516776216,1.65289768,3114.3,3113.8,0.0022737]
[1642516776469,0.00227369,3114.6,3113.9,0.01425305]
[1642516776669,0.00227369,3114.6,3114.1,0.06535896]
[1642516776871,0.00170527,3114.5,3114.1,0.06535896]
[1642516777069,0.00170527,3114.5,3114.3,0.07755702]
[1642516777270,0.00113684,3114.4,3114.1,0.1283]
[1642516777470,1.95802881,3114.4,3114.1,0.1283]
[1642516777670,1.95689197,3114.4,3114.0,0.42943685]
[1642516777870,1.44751112,3114.2,3114.0,0.12943685]
[1642516778371,1.44751112,3114.2,3114.0,0.00113685]
[1642516778772,1.57581112,3114.2,3114.0,0.00113685]
[1642516778971,1.57581112,3114.2,3112.6,1.62724157]
[1642516778972,1.87581112,3114.2,3112.9,0.00738951]
[1642516779175,1.87581112,3114.2,3112.9,0.13578951]
[1642516779176,0.3,3114.2,3112.9,0.13578951]
[1642516779374,0.3,3114.2,3113.0,0.05569956]
[1642516779572,4.99672368,3114.3,3113.0,0.06252064]
[1642516779773,0.1283,3114.1,3113.1,0.00625266]